fUST/lending_fUST_20240811
["ID","MTS","AMOUNT","RATE_DAILY","PERIOD"]
[334617598,1723349453155,-185.344031,0.00021095,2]
[334617599,1723349453164,-185.344031,0.00021095,2]
[334617600,1723349453175,-185.344031,0.00021095,2]
[334617601,1723349453184,-7857.32,0.00021095,3]
[334617602,1723349453194,-651.88,0.00021095,3]
[334617603,1723349453205,-516.55099921,0.00021095,3]
[334617604,1723349453214,-1150.12,0.00021095,3]
[334617605,1723349453385,-535.81391925,0.00021095,3]
[334617606,1723349453397,-500.0,0.00021095,3]
[334617607,1723349453406,-500.0,0.00021095,3]
[334617608,1723349453415,-701.39,0.00021095,3]
[334617609,1723349453424,-957.17,0.00021095,3]
[334617610,1723349453433,-500.0,0.00021095,3]
[334617611,1723349453442,-3000.0,0.000211,2]
[334617612,1723349453452,-3000.0,0.0002111,2]
[334617613,1723349453461,-3000.0,0.0002112,2]
[334617614,1723349453470,-3000.0,0.0002113,2]
[334617615,1723349453479,-700.0,0.0002113,2]
[334617616,1723349453488,-700.0,0.0002113,2]
[334617617,1723349453497,-1171.570492,0.0002113,2]
[334617618,1723349453507,-1171.570492,0.0002113,2]
[334617619,1723349453517,-288.807923,0.0002113,2]
[334617620,1723349453526,-288.807923,0.0002113,2]
[334617621,1723349453535,-3000.0,0.0002114,2]
[334617622,1723349453546,-400.0,0.00021142,2]
[334617623,1723349453555,-400.78060504,0.00021142,2]
[334617624,1723349453565,-3000.0,0.0002115,2]
[334617625,1723349453574,-3000.0,0.0002116,2]
[334617626,1723349453583,-3000.0,0.0002117,2]
[334617627,1723349453592,-3000.0,0.0002118,2]
[334617628,1723349453601,-3000.0,0.0002119,2]
[334617629,1723349453611,-3000.0,0.000212,2]
[334617630,1723349453620,-3000.0,0.0002121,2]
[334617631,1723349453629,-3000.0,0.0002122,2]
[334617632,1723349453639,-3000.0,0.0002123,2]
[334617633,1723349453652,-3000.0,0.0002124,2]
[334617634,1723349453662,-3000.0,0.0002125,2]
[334617635,1723349453672,-3000.0,0.0002126,2]
[334617636,1723349453682,-185.344031,0.0002126,2]
[334617637,1723349453691,-185.344031,0.0002126,2]
[334617638,1723349453701,-3000.0,0.0002127,2]
[334617639,1723349453711,-3000.0,0.0002128,2]
[334617640,1723349453720,-3000.0,0.0002129,2]
[334617641,1723349453729,-3000.0,0.000213,2]
[334617642,1723349453740,-3000.0,0.0002131,2]
[334617643,1723349453750,-5715.9191904,0.0002132,11]
[334617644,1723349453760,-409.779529,0.0002132,2]
[334617645,1723349453769,-409.779529,0.0002132,2]
[334617646,1723349453778,-3000.0,0.0002132,2]
[334617647,1723349453788,-3000.0,0.0002133,2]
[334617648,1723349453798,-692.097073,0.0002134,2]
[334617649,1723349453807,-692.097073,0.0002134,2]
[334617650,1723349453816,-3000.0,0.0002134,2]
[334617651,1723349453826,-3000.0,0.0002135,2]
[334617652,1723349453835,-3000.0,0.0002136,2]
[334617653,1723349453844,-800.02,0.00021369,3]
[334617654,1723349453853,-500.0,0.00021369,3]
[334617655,1723349453863,-500.0,0.00021369,3]
[334617656,1723349453873,-500.0,0.00021369,3]
[334617657,1723349453882,-500.0,0.00021369,3]
[334617658,1723349453891,-500.0,0.00021369,3]
[334617659,1723349453902,-500.0,0.00021369,3]
[334617660,1723349453911,-500.0,0.00021369,3]
[334617661,1723349453921,-506.42,0.00021369,3]
[334617662,1723349453930,-500.0,0.00021369,2]
[334617663,1723349453939,-500.0,0.00021369,3]
[334617664,1723349453949,-500.0,0.00021369,3]
[334617665,1723349453958,-500.0,0.00021369,3]
[334617666,1723349453967,-500.0,0.00021369,3]
[334617667,1723349453976,-500.0,0.00021369,3]
[334617668,1723349453986,-500.0,0.00021369,3]
[334617669,1723349453996,-500.0,0.00021369,3]
[334617670,1723349454005,-500.0,0.00021369,3]
[334617671,1723349454015,-500.0,0.00021369,3]
[334617672,1723349454024,-500.0,0.00021369,3]
[334617673,1723349454033,-500.0,0.00021369,3]
[334617674,1723349454043,-500.0,0.00021369,3]
[334617675,1723349454052,-500.0,0.00021369,3]
[334617676,1723349454061,-500.0,0.00021369,3]
[334617677,1723349454071,-500.0,0.00021369,3]
[334617678,1723349454080,-500.0,0.00021369,3]
[334617679,1723349454090,-500.0,0.00021369,3]
[334617680,1723349454099,-539.18,0.00021369,3]
[334617681,1723349454113,-500.0,0.00021369,3]
[334617682,1723349454123,-515.59029739,0.00021369,3]
[334617683,1723349454133,-333.67149681,0.00021369,3]
[334617684,1723349454145,-500.0,0.00021369,3]
[334617685,1723349454155,-500.0,0.00021369,3]
[334617686,1723349454164,-500.0,0.00021369,3]
[334617687,1723349454174,-500.0,0.00021369,3]
[334617688,1723349454184,-509.94788976,0.00021369,3]
[334617689,1723349454193,-500.0,0.00021369,3]
[334617690,1723349454202,-500.0,0.00021369,3]
[334617691,1723349454213,-500.0,0.00021369,3]
[334617692,1723349454223,-500.0,0.00021369,3]
[334617693,1723349454232,-500.0,0.00021369,3]
[334617694,1723349454241,-500.0,0.00021369,3]
[334617695,1723349454251,-500.0,0.00021369,3]
[334617696,1723349454260,-326.02395482,0.00021369,3]
[334617697,1723349454270,-759.38,0.00021369,3]
[334617698,1723349454280,-983.97,0.00021369,3]
[334617699,1723349454290,-500.0,0.00021369,3]
[334617700,1723349454300,-500.0,0.00021369,3]
[334617701,1723349454310,-1006.74,0.00021369,3]
[334617702,1723349454319,-2445.87,0.00021369,3]
[334617703,1723349454329,-433.19467195,0.00021369,3]
[334617704,1723349454339,-500.0,0.00021369,3]
[334617705,1723349454348,-513.34254633,0.00021369,3]
[334617706,1723349454358,-1254.17,0.00021369,3]
[334617707,1723349454368,-500.0,0.00021369,3]
[334617708,1723349454377,-500.0,0.00021369,3]
[334617709,1723349454387,-500.0,0.00021369,3]
[334617710,1723349454400,-500.0,0.00021369,3]
[334617711,1723349454409,-500.0,0.00021369,3]
[334617712,1723349454419,-160.83998048,0.00021369,3]
[334617713,1723349454429,-500.0,0.00021369,3]
[334617714,1723349454439,-605.4,0.00021369,3]
[334617715,1723349454448,-500.0,0.00021369,3]
[334617716,1723349454458,-500.0,0.00021369,3]
[334617717,1723349454468,-813.43,0.00021369,3]
[334617718,1723349454478,-500.0,0.00021369,3]
[334617719,1723349454488,-604.21,0.00021369,3]
[334617720,1723349454497,-500.0,0.00021369,3]
[334617721,1723349454506,-500.0,0.00021369,3]
[334617722,1723349454516,-500.0,0.00021369,3]
[334617723,1723349454525,-955.71,0.00021369,3]
[334617724,1723349454536,-500.0,0.00021369,3]
[334617725,1723349454546,-500.0,0.00021369,3]
[334617726,1723349454557,-500.0,0.00021369,3]
[334617727,1723349454569,-500.0,0.00021369,3]
[334617728,1723349454578,-500.0,0.00021369,3]
[334617729,1723349454586,-500.0,0.00021369,3]
[334617730,1723349454596,-500.0,0.00021369,3]
[334617731,1723349454605,-500.0,0.00021369,3]
[334617732,1723349454614,-1021.02,0.00021369,3]
[334617733,1723349454624,-500.0,0.00021369,3]
[334617734,1723349454633,-1022.92,0.00021369,3]
[334617735,1723349454643,-606.4,0.00021369,3]
[334617736,1723349454660,-409.779529,0.00021369,2]
[334617737,1723349454670,-500.0,0.00021369,3]
[334617738,1723349454679,-409.779529,0.00021369,2]
[334617739,1723349454689,-500.0,0.00021369,3]
[334617740,1723349454700,-409.779529,0.00021369,2]
[334617741,1723349454710,-409.77952,0.00021369,2]
[334617742,1723349454720,-500.0,0.00021369,3]
[334617743,1723349454729,-928.2,0.00021369,3]
[334617744,1723349454739,-516.43,0.00021369,3]
[334617745,1723349454748,-500.0,0.00021369,3]
[334617746,1723349454758,-500.0,0.00021369,3]
[334617747,1723349454767,-500.0,0.00021369,3]
[334617748,1723349454777,-500.0,0.00021369,3]
[334617749,1723349454787,-500.0,0.00021369,3]
[334617750,1723349454796,-899.65,0.00021369,3]
[334617751,1723349454806,-500.0,0.00021369,3]
[334617752,1723349454815,-169.21479266,0.00021369,3]
[334617753,1723349454825,-500.0,0.00021369,3]
[334617754,1723349454834,-500.0,0.00021369,3]
[334617755,1723349454844,-854.12,0.00021369,3]
[334617756,1723349454853,-1922.66,0.00021369,3]
[334617757,1723349454863,-518.64091493,0.00021369,3]
[334617758,1723349454872,-788.62,0.00021369,3]
[334617759,1723349454882,-500.0,0.00021369,3]
[334617760,1723349454891,-519.39226522,0.00021369,3]
[334617761,1723349454902,-500.0,0.00021369,3]
[334617762,1723349454912,-500.0,0.00021369,3]
[334617763,1723349454921,-952.98,0.00021369,3]
[334617764,1723349454930,-500.0,0.00021369,3]
[334617765,1723349454940,-500.0,0.00021369,3]
[334617766,1723349454949,-1168.07,0.00021369,3]
[334617767,1723349454959,-500.0,0.00021369,3]
[334617768,1723349454969,-500.0,0.00021369,3]
[334617769,1723349454978,-1703.39,0.00021369,3]
[334617770,1723349454988,-500.0,0.00021369,3]
[334617771,1723349454999,-500.0,0.00021369,3]
[334617772,1723349455008,-500.0,0.00021369,3]
[334617773,1723349455018,-692.097073,0.00021369,2]
[334617774,1723349455028,-692.097073,0.00021369,2]
[334617775,1723349455038,-500.0,0.00021369,3]
[334617776,1723349455048,-500.0,0.00021369,3]
[334617777,1723349455058,-692.097073,0.00021369,2]
[334617778,1723349455067,-692.097067,0.00021369,2]
[334617779,1723349455077,-628.92,0.00021369,3]
[334617780,1723349455086,-618.14,0.00021369,3]
[334617781,1723349455096,-861.91,0.00021369,3]
[334617782,1723349455105,-500.0,0.00021369,3]
[334617783,1723349455114,-500.0,0.00021369,3]
[334617784,1723349455125,-605.26,0.00021369,2]
[334617785,1723349455137,-640.19,0.00021369,3]
[334617786,1723349455148,-500.0,0.00021369,3]
[334617787,1723349455158,-457.86721893,0.00021369,3]
[334617788,1723349455167,-691.91,0.00021369,3]
[334617789,1723349455179,-500.0,0.00021369,3]
[334617790,1723349455188,-618.61,0.00021369,3]
[334617791,1723349455198,-500.0,0.00021369,3]
[334617792,1723349455208,-500.0,0.00021369,3]
[334617793,1723349455218,-743.19,0.00021369,3]
[334617794,1723349455227,-1364.63,0.00021369,3]
[334617795,1723349455237,-500.0,0.00021369,3]
[334617796,1723349455246,-820.83,0.00021369,3]
[334617797,1723349455255,-500.0,0.00021369,3]
[334617798,1723349455265,-500.0,0.00021369,3]
[334617799,1723349455274,-517.58,0.00021369,3]
[334617800,1723349455283,-638.14,0.00021369,3]
[334617801,1723349455292,-789.55,0.00021369,3]
[334617802,1723349455302,-603.76,0.00021369,3]
[334617803,1723349455311,-1456.8,0.00021369,3]
[334617804,1723349455320,-500.0,0.00021369,3]
[334617805,1723349455329,-500.0,0.00021369,3]
[334617806,1723349455338,-505.33,0.00021369,3]
[334617807,1723349455347,-500.0,0.00021369,3]
[334617808,1723349455356,-500.0,0.00021369,3]
[334617809,1723349455366,-730.56,0.00021369,3]
[334617810,1723349455377,-500.0,0.00021369,3]
[334617811,1723349455387,-500.0,0.00021369,3]
[334617812,1723349455397,-500.0,0.00021369,3]
[334617813,1723349455407,-500.0,0.00021369,3]
[334617814,1723349455416,-500.0,0.00021369,3]
[334617815,1723349455426,-500.0,0.00021369,3]
[334617816,1723349455435,-582.14,0.00021369,3]
[334617817,1723349455445,-500.0,0.00021369,3]
[334617818,1723349455455,-500.0,0.00021369,3]
[334617819,1723349455465,-1177.54,0.00021369,3]
[334617820,1723349455474,-500.0,0.00021369,3]
[334617821,1723349455483,-1248.66,0.00021369,3]
[334617822,1723349455500,-500.0,0.00021369,3]
[334617823,1723349455512,-527.23,0.00021369,3]
[334617824,1723349455522,-610.24,0.00021369,3]
[334617825,1723349455532,-631.6895163,0.00021369,3]
[334617826,1723349455541,-500.0,0.00021369,3]
[334617827,1723349455551,-718.89,0.00021369,3]
[334617828,1723349455560,-541.4,0.00021369,3]
[334617829,1723349455569,-500.0,0.00021369,3]
[334617830,1723349455579,-1469.8,0.00021369,3]
[334617831,1723349455588,-777.28,0.00021369,3]
[334617832,1723349455598,-517.59153495,0.00021369,3]
[334617833,1723349455607,-922.83,0.00021369,3]
[334617834,1723349455616,-500.0,0.00021369,3]
[334617835,1723349455626,-333.58899067,0.00021369,3]
[334617836,1723349455636,-1187.55,0.00021369,3]
[334617837,1723349455646,-1368.57,0.00021369,3]
[334617838,1723349455655,-500.0,0.00021369,3]
[334617839,1723349455664,-500.0,0.00021369,3]
[334617840,1723349455674,-469.04280131,0.00021369,3]
[334617841,1723349455688,-1421.28,0.00021369,3]
[334617842,1723349455699,-367.16388124,0.00021369,3]
[334617843,1723349455709,-500.0,0.00021369,3]
[334617844,1723349455720,-500.0,0.00021369,3]
[334617845,1723349455731,-500.0,0.00021369,3]
[334617846,1723349455743,-500.0,0.00021369,3]
[334617847,1723349455753,-500.0,0.00021369,3]
[334617848,1723349455763,-500.0,0.00021369,3]
[334617849,1723349455948,-500.0,0.00021369,3]
[334617850,1723349455958,-340.663153,0.00021369,2]
[334617851,1723349455968,-340.663153,0.00021369,2]
[334617852,1723349455980,-500.0,0.00021369,3]
[334617853,1723349455990,-340.663153,0.00021369,2]
[334617854,1723349456002,-340.66314324,0.00021369,2]
[334617855,1723349456013,-260.58144566,0.00021369,3]
[334617856,1723349456025,-500.0,0.00021369,3]
[334617857,1723349456035,-500.0,0.00021369,3]
[334617858,1723349456045,-449.44145098,0.00021369,3]
[334617859,1723349456055,-500.0,0.00021369,3]
[334617860,1723349456065,-525.9794324,0.00021369,3]
[334617861,1723349456075,-500.0,0.00021369,3]
[334617862,1723349456085,-500.0,0.00021369,3]
[334617863,1723349456094,-162.908206,0.00021369,2]
[334617864,1723349456104,-500.0,0.00021369,3]
[334617865,1723349456114,-162.908206,0.00021369,2]
[334617866,1723349456126,-162.908206,0.00021369,2]
[334617867,1723349456141,-162.908215,0.00021369,2]
[334617868,1723349456154,-500.0,0.00021369,3]
[334617869,1723349456164,-500.0,0.00021369,3]
[334617870,1723349456175,-500.0,0.00021369,3]
[334617871,1723349456185,-1795.97,0.00021369,3]
[334617872,1723349456196,-500.0,0.00021369,3]
[334617873,1723349456207,-2300.82,0.00021369,3]
[334617874,1723349456217,-1261.28,0.00021369,3]
[334617875,1723349456226,-724.56,0.00021369,3]
[334617876,1723349456235,-759.73,0.00021369,3]
[334617877,1723349456244,-500.0,0.00021369,3]
[334617878,1723349456254,-500.0,0.00021369,3]
[334617879,1723349456263,-500.0,0.00021369,3]
[334617880,1723349456272,-500.0,0.00021369,3]
[334617881,1723349456281,-500.0,0.00021369,3]
[334617882,1723349456290,-500.0,0.00021369,3]
[334617883,1723349456299,-674.3,0.00021369,3]
[334617884,1723349456309,-905.38,0.00021369,3]
[334617885,1723349456318,-1922.81,0.00021369,3]
[334617886,1723349456327,-700.0,0.00021369,2]
[334617887,1723349456337,-700.0,0.00021369,2]
[334617888,1723349456346,-500.0,0.00021369,3]
[334617889,1723349456355,-500.0,0.00021369,3]
[334617890,1723349456364,-500.0,0.00021369,3]
[334617891,1723349456374,-700.0,0.00021369,2]
[334617892,1723349456383,-700.0,0.00021369,2]
[334617893,1723349456392,-1171.570492,0.00021369,2]
[334617894,1723349456402,-1171.570492,0.00021369,2]
[334617895,1723349456415,-2250.85,0.00021369,3]
[334617896,1723349456425,-723.49,0.00021369,3]
[334617897,1723349456435,-1171.570492,0.00021369,2]
[334617898,1723349456445,-1171.570501,0.00021369,2]
[334617899,1723349456455,-3262.69,0.00021369,3]
[334617900,1723349456466,-500.0,0.00021369,3]
[334617901,1723349456476,-536.04,0.00021369,3]
[334617902,1723349456487,-1896.87,0.00021369,3]
[334617903,1723349456498,-2301.47,0.00021369,3]
[334617904,1723349456507,-1820.71,0.00021369,3]
[334617905,1723349456517,-500.0,0.00021369,3]
[334617906,1723349456528,-500.0,0.00021369,3]
[334617907,1723349456538,-1210.95,0.00021369,3]
[334617908,1723349456548,-500.0,0.00021369,3]
[334617909,1723349456559,-522.26,0.00021369,3]
[334617910,1723349456570,-288.807923,0.00021369,2]
[334617911,1723349456579,-288.807923,0.00021369,2]
[334617912,1723349456588,-2077.54,0.00021369,3]
[334617913,1723349456597,-288.807923,0.00021369,2]
[334617914,1723349456607,-55.782687,0.00021369,2]
[334617915,1723349456852,-233.025241,0.00021369,2]
[334617916,1723349456862,-12410.1,0.00021369,3]
[334617917,1723349456872,-1232.92,0.00021369,3]
[334617918,1723349456882,-500.0,0.00021369,3]
[334617919,1723349456891,-500.0,0.00021369,3]
[334617920,1723349456902,-500.0,0.00021369,3]
[334617921,1723349456911,-500.0,0.00021369,3]
[334617922,1723349456920,-654.7,0.00021369,3]
[334617923,1723349456930,-3383.0,0.00021369,3]
[334617924,1723349456939,-500.0,0.00021369,3]
[334617925,1723349456948,-3874.35,0.00021369,3]
[334617926,1723349456957,-500.0,0.00021369,3]
[334617927,1723349456967,-500.0,0.00021369,3]
[334617928,1723349456978,-500.0,0.00021369,3]
[334617929,1723349456988,-810.73,0.00021369,3]
[334617930,1723349456997,-2348.17,0.00021369,3]
[334617931,1723349457008,-500.0,0.00021369,3]
[334617932,1723349457018,-562.36,0.00021369,3]
[334617933,1723349457028,-1432.79132634,0.00021369,3]
[334617934,1723349457056,-912.62867366,0.00021369,3]
[334617935,1723349457066,-110.4989517,0.00021369,3]
[334617936,1723349457445,-210.04889723,0.0001571,2]
[334617937,1723349457455,-314.18001922,0.00016159,2]
[334617938,1723349457464,-389.5010483,0.00021369,3]
[334617939,1723349457473,-500.0,0.00021369,3]
[334617940,1723349457483,-558.68,0.00021369,3]
[334617941,1723349457493,-500.0,0.00021369,3]
[334617942,1723349457502,-682.38,0.00021369,3]
[334617943,1723349457511,-2133.92,0.00021369,3]
[334617944,1723349457520,-264.279785,0.00021369,2]
[334617945,1723349457530,-264.279785,0.00021369,2]
[334617946,1723349457539,-264.279785,0.00021369,2]
[334617947,1723349457548,-264.279785,0.00021369,2]
[334617948,1723349457557,-187.821556,0.00021369,2]
[334617949,1723349457566,-187.821556,0.00021369,2]
[334617950,1723349457575,-574.79,0.00021369,3]
[334617951,1723349457585,-187.821556,0.00021369,2]
[334617952,1723349457595,-187.821556,0.00021369,2]
[334617953,1723349457604,-500.0,0.00021369,3]
[334617954,1723349457614,-588.08,0.00021369,3]
[334617955,1723349457625,-962.04,0.00021369,3]
[334617956,1723349457636,-1161.84,0.00021369,3]
[334617957,1723349457647,-3010.59,0.00021369,3]
[334617958,1723349457656,-500.0,0.00021369,3]
[334617959,1723349457665,-500.0,0.00021369,3]
[334617960,1723349457675,-1494.27,0.00021369,3]
[334617961,1723349457685,-500.0,0.00021369,3]
[334617962,1723349457694,-500.0,0.00021369,3]
[334617963,1723349457704,-445.403825,0.00021369,2]
[334617964,1723349457714,-445.403825,0.00021369,2]
[334617965,1723349457724,-948.76,0.00021369,3]
[334617966,1723349457733,-500.0,0.00021369,3]
[334617967,1723349457742,-500.0,0.00021369,3]
[334617968,1723349457752,-1402.88,0.00021369,3]
[334617969,1723349457761,-940.1,0.00021369,3]
[334617970,1723349457770,-445.403825,0.00021369,2]
[334617971,1723349457780,-500.0,0.00021369,3]
[334617972,1723349457790,-445.403825,0.00021369,2]
[334617973,1723349457800,-1604.64,0.00021369,3]
[334617974,1723349457809,-1606.4,0.00021369,3]
[334617975,1723349457818,-151.0,0.00021369,2]
[334617976,1723349457827,-151.0,0.00021369,2]
[334617977,1723349457838,-13994.82,0.00021369,3]
[334617978,1723349457847,-3482.42,0.00021369,3]
[334617979,1723349457857,-500.0,0.00021369,3]
[334617980,1723349457866,-872.99,0.00021369,3]
[334617981,1723349457876,-500.0,0.00021369,3]
[334617982,1723349457886,-1128.07,0.00021369,3]
[334617983,1723349458011,-612.721247,0.00021369,2]
[334617984,1723349458020,-612.721247,0.00021369,2]
[334617985,1723349458031,-500.0,0.00021369,3]
[334617986,1723349458041,-2436.58,0.00021369,3]
[334617987,1723349458051,-612.721247,0.00021369,2]
[334617988,1723349458060,-2458.02,0.00021369,3]
[334617989,1723349458068,-612.721247,0.00021369,2]
[334617990,1723349458077,-500.0,0.00021369,3]
[334617991,1723349458087,-8375.0,0.00021369,3]
[334617992,1723349458096,-500.0,0.00021369,3]
[334617993,1723349458106,-5736.55,0.00021369,3]
[334617994,1723349458115,-1733.03,0.00021369,3]
[334617995,1723349458126,-630.51,0.00021369,3]
[334617996,1723349458138,-500.0,0.00021369,3]
[334617997,1723349458149,-476.11888176,0.00021369,3]
[334617998,1723349458159,-500.0,0.00021369,3]
[334617999,1723349458168,-500.0,0.00021369,3]
[334618000,1723349458178,-3366.44,0.00021369,3]
[334618001,1723349458187,-500.0,0.00021369,3]
[334618002,1723349458196,-1284.01,0.00021369,3]
[334618003,1723349458207,-6556.52,0.00021369,3]
[334618004,1723349458216,-500.0,0.00021369,3]
[334618005,1723349458225,-500.0,0.00021369,3]
[334618006,1723349458234,-500.0,0.00021369,3]
[334618007,1723349458243,-2029.96,0.00021369,3]
[334618008,1723349458253,-973.3,0.00021369,3]
[334618009,1723349458262,-1336.76,0.00021369,3]
[334618010,1723349458271,-500.0,0.00021369,3]
[334618011,1723349458281,-500.0,0.00021369,3]
[334618012,1723349458290,-1855.54,0.00021369,3]
[334618013,1723349458300,-500.0,0.00021369,3]
[334618014,1723349458309,-436.23725827,0.00021369,3]
[334618015,1723349458723,-810.44375008,0.00015954,2]
[334618016,1723349458733,-520.09681302,0.00017389,2]
[334618017,1723349458742,-451.26399425,0.00020821,3]
[334618018,1723349464838,1500.0,0.0001212,2]
[334618019,1723349465184,156.82503371,0.0001212,2]
[334618020,1723349467260,8834.48131506,0.0001212,2]
[334618021,1723349472417,1993.38782086,0.0001212,2]
[334618022,1723349474271,154.79103211,0.0001212,2]
[334618023,1723349474401,174.67965412,0.0001212,2]
[334618024,1723349474488,500.0,0.00027,120]
[334618025,1723349475161,850.13586547,0.0001212,2]
[334618026,1723349475750,9651.03918107,0.0001212,2]
[334618027,1723349476004,694.71379029,0.0001212,2]
[334618028,1723349476037,845.54644341,0.0001212,2]
[334618029,1723349476601,259.89892202,0.0001212,2]
[334618030,1723349476874,1109.82295728,0.00015,2]
[334618031,1723349477428,200.31193781,0.0001212,2]
[334618032,1723349479070,15312.85023059,0.0001212,2]
[334618033,1723349479737,1163.86062826,0.0001212,2]
[334618034,1723349480871,3090.31067256,0.0001212,2]
[334618035,1723349481649,404.08727484,0.0001212,2]
[334618036,1723349481857,154.76012181,0.0001212,2]
[334618037,1723349481891,238.30733337,0.0001212,2]
[334618038,1723349483394,341.46262512,0.0001212,2]
[334618039,1723349485032,205.36496574,0.0001212,2]
[334618040,1723349486934,154.76012181,0.0001212,2]
[334618041,1723349487922,2709.99861051,0.0001212,2]
[334618042,1723349488107,500.0,0.00027,120]
[334618043,1723349488233,159.5700297,0.0001212,2]
[334618044,1723349490523,952.621668,0.00015,2]
[334618045,1723349491903,154.76012181,0.0001212,2]
[334618046,1723349492175,569.05372197,0.0001212,2]
[334618047,1723349492680,2126.37973248,0.0001212,2]
[334618048,1723349493021,165.44061629,0.0001212,2]
[334618049,1723349494440,7007.90701187,0.0001212,2]
[334618050,1723349495259,332.21200423,0.0001212,2]
[334618051,1723349496906,154.76012181,0.0001212,2]
[334618052,1723349497294,500.0,0.00027,120]
[334618053,1723349498018,952.621668,0.00015,2]
[334618054,1723349502073,156.96173825,0.0001212,2]
[334618055,1723349503308,210.04889723,0.0001212,2]
[334618056,1723349507314,329.83805105,0.0001212,2]
[334618057,1723349507593,2126.37973248,0.0001212,2]
[334618058,1723349510610,520.09681302,0.00014691,2]
[334618059,1723349511276,2163.84623957,0.00014691,2]
[334618060,1723349513195,850.13586547,0.00014691,2]
[334618061,1723349514724,9651.03918107,0.00014691,2]
[334618062,1723349516000,693.97123901,0.00014691,2]
[334618063,1723349517747,760.76309346,0.00014691,2]
[334618064,1723349521649,530.73614568,0.00014691,2]
[334618065,1723349522814,1109.07507548,0.00015,2]
[334618066,1723349529650,18639.03906377,0.00014691,2]
[334618067,1723349533864,154.82194241,0.00014691,2]
[334618068,1723349534413,174.39313444,0.00014691,2]
[334618069,1723349535042,205.20161226,0.00014691,2]
[334618070,1723349535946,258.27668729,0.00014691,2]
[334618071,1723349536876,735.67963429,0.00014691,2]
[334618072,1723349549452,-500.0,0.00015698,2]
[334618073,1723349549477,-393.96143981,0.00015698,2]
[334618074,1723349549501,-157.09694705,0.0001571,2]
[334618075,1723349549524,-180.63105164,0.0001571,2]
[334618076,1723349549548,-534.3800288,0.0001571,2]
[334618077,1723349549572,-189.91186464,0.00015952,2]
[334618078,1723349550312,209.87190893,0.00014691,2]
[334618079,1723349552189,569.05372197,0.00014691,2]
[334618080,1723349553585,283.94659951,0.00014691,2]
[334618082,1723349588205,273.37336231,9.9e-05,2]
[334618083,1723349595434,170.79399998,0.00014691,2]
[334618084,1723349596840,164.74837,0.00014247,2]
[334618085,1723349605338,273.37336231,9.9e-05,2]
[334618086,1723349637095,4234.91158064,0.000157,2]
[334618087,1723349679336,1237.033139,0.00015731,2]
[334618088,1723349685167,95739.39188045,0.000157,2]
[334618089,1723349697135,235.1570113,0.00015754,2]
[334618090,1723349716051,94321.80361448,0.00027,120]
[334618091,1723349727697,3574.2134495,0.00015845,2]
[334618092,1723349755219,10000.0,0.00027,120]
[334618093,1723349870097,15795.15028216,0.0001564,2]
[334618095,1723349987730,532.8664081,0.0001501,2]
[334618096,1723350051024,3000.0,0.00014853,2]
[334618097,1723350064272,1630.37877573,0.0001501,2]
[334618098,1723350154325,606.76357097,0.0001501,2]
[334618099,1723350178199,618.516569,0.000145,2]